bitfinex-derivatives/quotes_SOLF0:USTF0_20251209
["timestamp","ask_amount","ask_price","bid_price","bid_amount"]
[1765246508621,3.31834798,133.15,133.14,2.22320913]
[1765246510122,0.04834798,133.15,133.14,2.22320913]
[1765246510320,0.04834798,133.15,133.14,66.08320913]
[1765246512022,3.27,133.18,133.15,6.7586]
[1765246512209,3.27,133.18,133.16,2.22320913]
[1765246512813,7.00591952,133.21,133.16,2.22320913]
[1765246513011,3.27,133.19,133.17,0.0504487]
[1765246513215,3.27,133.19,133.18,2.22320913]
[1765246513412,9.00446438,133.19,133.17,0.0504487]
[1765246513621,3.27,133.18,133.17,0.0504487]
[1765246516932,3.27,133.19,133.17,0.0504487]
[1765246517228,3.31920513,133.2,133.18,2.22320913]
[1765246518934,3.31920513,133.2,133.17,6.8079487]
[1765246519134,3.31920513,133.2,133.17,9.03115783]
[1765246519831,3.31920513,133.2,133.17,2.27365783]
[1765246521530,3.31920513,133.2,133.17,0.0504487]
[1765246524145,3.31920513,133.2,133.18,2.22320913]
[1765246524344,0.04920513,133.2,133.18,2.22320913]
[1765246524743,0.04920513,133.2,133.19,2.22320913]
[1765246524952,5.78127948,133.2,133.19,2.22320913]
[1765246525138,0.04920513,133.2,133.19,2.22320913]
[1765246526053,0.04920513,133.2,133.19,121.22320913]
[1765246530370,3.36,133.26,133.19,226.32280913]
[1765246530656,3.36,133.26,133.23,2.22320913]
[1765246531556,3.41538246,133.26,133.23,2.27699782]
[1765246532155,3.41538246,133.26,133.23,0.05378869]
[1765246532543,3.36,133.24,133.2,189.5959]
[1765246532746,3.36,133.24,133.2,6.7559]
[1765246532947,3.36,133.24,133.19,2.22320913]
[1765246533147,3.36,133.23,133.18,6.7568]
[1765246533350,3.36,133.22,133.18,8.98000913]
[1765246533551,3.36,133.2,133.19,0.05519731]
[1765246536662,3.36,133.2,133.19,2.27840644]
[1765246538661,3.41206684,133.21,133.19,2.27840644]
[1765246539568,0.05206684,133.21,133.19,9.03490644]
[1765246539763,0.05206684,133.21,133.2,63.84]
[1765246540063,3.36,133.26,133.21,6.7556]
[1765246540365,3.36,133.26,133.21,125.7556]
[1765246540566,3.36,133.26,133.23,2.22320913]
[1765246540958,3.36,133.31,133.25,2.22320913]
[1765246541158,7.00591952,133.34,133.29,2.22320913]
[1765246541364,18.05803626,133.33,133.29,2.22320913]
[1765246541666,3.36,133.31,133.3,0.0574483]
[1765246544169,3.36,133.31,133.28,2.22320913]
[1765246544371,3.36,133.31,133.26,2.22320913]
[1765246545169,0.05176894,133.3,133.27,0.05724032]
[1765246545474,3.36,133.29,133.27,0.05724032]
[1765246548075,3.36,133.28,133.24,66.04320913]
[1765246548871,3.15,133.27,133.22,2.22320913]
[1765246549073,3.15,133.25,133.23,0.05295271]
[1765246550168,3.20161098,133.26,133.23,0.05295271]
[1765246559985,3.20161098,133.26,133.24,2.22320913]
[1765246560791,3.20161098,133.26,133.23,0.05295271]
[1765246567894,3.15,133.24,133.19,182.8]
[1765246568101,3.15,133.24,133.19,119.0]
[1765246568293,3.15,133.24,133.18,10.22462043]
[1765246568601,3.15,133.24,133.18,6.7569]
[1765246568988,3.15,133.21,133.2,0.03252022]
[1765246574500,3.15,133.21,133.17,119.0]
[1765246574805,3.15,133.21,133.16,189.558]
[1765246580004,3.15,133.21,133.16,182.8]
[1765246580307,3.15,133.21,133.17,6.7576]
[1765246592810,3.15,133.21,133.18,6.7571]
[1765246605325,3.15,133.21,133.17,119.0]
[1765246605723,3.05,133.19,133.14,119.0]
[1765246605925,3.05,133.17,133.14,182.84]
[1765246607123,3.05,133.17,133.14,189.5989]
[1765246609031,3.05,133.17,133.14,193.06662043]
[1765246609326,3.3567025,133.18,133.14,193.06662043]
[1765246613127,3.3567025,133.18,133.15,6.7584]
[1765246618029,5.76516717,133.17,133.15,6.7584]
[1765246618228,3.3567025,133.18,133.15,6.7584]
[1765246618429,5.76544065,133.17,133.15,6.7584]
[1765246618728,3.3567025,133.18,133.15,6.7584]
[1765246618930,5.76549001,133.17,133.15,6.7584]
[1765246619238,3.3567025,133.18,133.15,6.7584]
[1765246619439,5.76567949,133.17,133.15,6.7584]
[1765246619640,3.3567025,133.18,133.15,6.7584]
[1765246620739,3.3567025,133.18,133.16,2.22197741]
[1765246621646,8.95525503,133.17,133.14,185.06197741]
[1765246621828,3.19,133.17,133.14,185.06197741]
[1765246622136,3.19,133.17,133.14,191.82107741]
[1765246622531,3.19,133.17,133.14,182.84]
[1765246622838,3.19,133.15,133.12,8.98207741]
[1765246623041,3.24518752,133.15,133.12,8.98207741]
[1765246623241,3.24518752,133.15,133.12,2.22197741]
[1765246623453,3.24518752,133.15,133.11,63.84]
[1765246623629,3.19,133.13,133.11,63.84]
[1765246625035,3.19,133.13,133.1,8.98287741]
[1765246625841,3.19,133.13,133.1,72.82287741]
[1765246626342,3.19,133.13,133.1,8.98287741]
[1765246626544,3.19,133.13,133.1,72.82287741]
[1765246627042,0.05518752,133.15,133.12,2.22197741]
[1765246627232,0.05518752,133.15,133.14,2.22197741]
[1765246627431,10.19591952,133.21,133.16,105.1223]
[1765246627645,3.19,133.21,133.16,63.84]
[1765246627848,3.19,133.21,133.19,2.22197741]
[1765246628044,3.19,133.23,133.19,2.22197741]
[1765246628243,3.19,133.23,133.16,63.84]
[1765246628244,5.75250431,133.22,133.21,2.22197741]
[1765246628741,3.24151564,133.23,133.21,2.22197741]
[1765246629047,0.05073093,133.23,133.21,2.27137441]
[1765246629342,3.24073093,133.23,133.21,2.27137441]
[1765246629541,3.24073093,133.23,133.21,0.049397]
[1765246630843,8.94017265,133.22,133.21,0.049397]
[1765246635548,3.19,133.21,133.17,185.06197741]
[1765246635750,3.19,133.19,133.17,2.22197741]
[1765246635952,3.19,133.19,133.15,2.22197741]
[1765246636250,3.19,133.17,133.15,2.22197741]
[1765246636451,3.24135219,133.17,133.15,2.22197741]
[1765246637252,0.05135219,133.17,133.15,2.22197741]
[1765246638352,3.36135219,133.17,133.15,2.22197741]
[1765246641544,3.36135219,133.17,133.13,189.5995]
[1765246641747,3.36135219,133.17,133.14,2.22197741]
[1765246641946,5.75216012,133.16,133.14,2.22197741]
[1765246642149,3.31,133.15,133.14,2.22197741]
[1765246642345,3.36135219,133.17,133.14,2.22197741]
[1765246642651,0.05135219,133.17,133.14,2.22197741]
[1765246642854,3.36135219,133.17,133.14,2.22197741]
[1765246644747,0.05135219,133.17,133.14,8.98097741]
[1765246644947,0.05135219,133.17,133.16,2.22197741]
[1765246646356,3.36135219,133.17,133.16,2.22197741]
[1765246647748,0.05135219,133.17,133.16,2.22197741]
[1765246655167,3.36135219,133.17,133.14,119.0]
[1765246658469,3.31,133.15,133.14,119.0]
[1765246659165,3.31,133.15,133.13,2.22197741]
[1765246659368,3.31,133.15,133.11,119.0]
[1765246659670,3.31,133.15,133.1,6.7609]
[1765246659671,3.36198098,133.14,133.12,2.22197741]
[1765246660669,3.36198098,133.14,133.1,191.82287741]
[1765246661771,3.36198098,133.14,133.1,189.6009]
[1765246661972,3.36198098,133.14,133.1,121.22197741]
[1765246662268,3.36198098,133.14,133.1,119.0]
[1765246662471,3.36198098,133.14,133.1,121.22197741]
[1765246662770,0.05198098,133.14,133.12,2.22197741]
[1765246663171,0.05198098,133.14,133.12,66.08197741]
[1765246664382,0.05198098,133.14,133.12,72.84197741]
[1765246666581,3.31,133.27,133.2,105.0966]
[1765246666885,3.31,133.26,133.24,2.22197741]
[1765246667686,0.05620011,133.26,133.24,2.27779972]
[1765246669173,0.05620011,133.26,133.24,66.13779972]
[1765246674778,0.05620011,133.26,133.24,72.89159972]
[1765246682293,3.22,133.33,133.25,107.27577741]
[1765246682498,3.22,133.33,133.3,2.22197741]
[1765246682692,3.22,133.33,133.28,63.82]
[1765246683498,3.22,133.31,133.29,0.04903505]
[1765246687005,3.27647002,133.32,133.29,0.04903505]
[1765246690006,3.27647002,133.32,133.29,6.80043505]
[1765246690206,0.05647002,133.32,133.29,3.51383028]
[1765246690810,0.05647002,133.32,133.31,3.46479523]
[1765246691511,0.05647002,133.32,133.3,6.7509]
[1765246693115,0.05647002,133.32,133.31,3.46479523]
[1765246693312,3.22,133.35,133.31,74.01499523]
[1765246694310,0.05426905,133.34,133.32,0.05642455]
[1765246694908,3.27426905,133.34,133.32,0.05642455]
[1765246695105,0.05426905,133.34,133.32,0.05642455]
[1765246696019,3.27426905,133.34,133.32,0.05642455]
[1765246699316,3.27426905,133.34,133.32,6.80632455]
[1765246699622,0.05426905,133.34,133.32,6.80632455]
[1765246700424,0.05426905,133.34,133.32,125.80632455]
[1765246700723,0.05426905,133.34,133.33,3.46479523]
[1765246701022,3.24,133.38,133.34,6.7489]
[1765246702014,0.05139088,133.37,133.34,6.7489]
[1765246702210,0.05139088,133.37,133.34,70.5289]
[1765246703225,3.29139088,133.37,133.34,70.5289]
[1765246704130,0.05139088,133.37,133.35,6.7484]
[1765246706720,0.05139088,133.37,133.35,10.21319523]
[1765246708432,3.29139088,133.37,133.35,10.21319523]
[1765246710131,0.05139088,133.37,133.35,10.21319523]
[1765246711037,0.05139088,133.37,133.35,129.21319523]
[1765246711443,5.59495638,133.4,133.38,6.747]
[1765246711636,3.24,133.41,133.38,6.747]
[1765246711832,3.24,133.39,133.37,63.76]
[1765246712232,3.24,133.44,133.37,63.76]
[1765246712445,3.29219368,133.42,133.39,0.05271918]
[1765246712646,8.83398862,133.41,133.39,0.05271918]
[1765246712942,5.59398862,133.4,133.39,0.05271918]
[1765246714553,3.24,133.41,133.39,0.05271918]
[1765246715846,3.29219368,133.42,133.39,6.79911918]
[1765246716150,0.05219368,133.42,133.4,63.76]
[1765246716951,0.05219368,133.42,133.4,70.5058]
[1765246717146,3.29219368,133.42,133.4,63.76]
[1765246718242,0.05219368,133.42,133.4,63.76]
[1765246718641,0.05219368,133.42,133.4,70.5058]
[1765246720139,3.24,133.47,133.42,6.7447]
[1765246720451,3.24,133.46,133.41,108.39169523]
[1765246720846,3.24,133.46,133.41,3.46479523]
[1765246721455,3.29482125,133.45,133.42,0.05092674]
[1765246724661,0.05482125,133.45,133.42,6.79562674]
[1765246724956,0.05482125,133.45,133.43,3.46479523]
[1765246725362,0.05482125,133.45,133.43,67.20479523]
[1765246726244,3.24,133.49,133.44,6.7438]
[1765246727349,3.24,133.47,133.45,0.0493495]
[1765246746670,3.21,133.46,133.45,0.0493495]
[1765246749970,3.21,133.46,133.41,119.0]
[1765246749971,3.21,133.46,133.43,2.21294571]
[1765246750871,3.21,133.46,133.41,121.21294571]
[1765246751266,3.21,133.44,133.42,0.05636295]
[1765246756671,3.21,133.43,133.39,2.21294571]
[1765246757673,3.21,133.43,133.4,0.04782983]
[1765246759873,3.07,133.41,133.4,0.04782983]
[1765246761574,3.07,133.4,133.37,2.21294571]
[1765246761774,3.07,133.4,133.35,2.21294571]
[1765246761775,3.07,133.39,133.35,2.21294571]
[1765246761973,3.07,133.38,133.35,2.21294571]
[1765246762674,3.12470231,133.38,133.35,2.26686145]
[1765246768278,3.12470231,133.38,133.35,0.05391574]
[1765246770882,3.12470231,133.38,133.35,2.26686145]
[1765246772383,3.12470231,133.38,133.35,0.05391574]
[1765246772582,3.12470231,133.38,133.35,2.26686145]
[1765246774278,3.12470231,133.38,133.35,0.05391574]
[1765246776082,3.12470231,133.38,133.35,6.80221574]
[1765246776886,3.12470231,133.38,133.36,2.21294571]
[1765246778285,3.12470231,133.38,133.35,6.80221574]
[1765246783591,3.12470231,133.38,133.35,0.05391574]
[1765246783793,3.07,133.36,133.35,0.05391574]
[1765246784586,3.07,133.36,133.31,63.74]
[1765246784794,3.07,133.34,133.3,2.21294571]
[1765246785693,2.21294571,133.35,133.3,2.21294571]
[1765246785694,3.12633718,133.33,133.31,0.05622208]
[1765246788092,3.12633718,133.33,133.32,2.21294571]
[1765246788299,3.12633718,133.33,133.31,0.05622208]
[1765246788690,3.31,133.32,133.31,0.05622208]
[1765246791599,0.05633718,133.33,133.31,0.05622208]
[1765246791600,3.36633718,133.33,133.31,0.05622208]
[1765246802211,3.36633718,133.33,133.31,6.80662208]
[1765246803304,3.36633718,133.33,133.31,0.05622208]
[1765246808418,0.05633718,133.33,133.31,6.80662208]
[1765246808711,0.05633718,133.33,133.32,3.46451079]
[1765246810417,3.05,133.36,133.33,6.7495]
[1765246810913,6.9431554,133.41,133.37,104.9611]
[1765246811100,6.9431554,133.45,133.37,67.24451079]
[1765246811306,0.04932524,133.42,133.4,0.05750339]
[1765246812908,3.05,133.41,133.35,3.46451079]
[1765246813218,3.05,133.41,133.35,67.22451079]
[1765246813820,3.05,133.41,133.35,63.76]
[1765246814115,3.05,133.41,133.37,0.05432163]
[1765246822020,3.05,133.41,133.37,6.80172163]
[1765246822222,3.05,133.41,133.38,3.46451079]
[1765246822426,3.05,133.41,133.38,122.46451079]
[1765246823626,3.05,133.41,133.38,129.21121079]
[1765246827531,3.40932524,133.42,133.38,129.21121079]
[1765246829521,3.40932524,133.42,133.38,192.95121079]
[1765246832024,3.40932524,133.42,133.39,6.7464]
[1765246839932,3.40932524,133.42,133.4,6.7459]
[1765246841842,3.40932524,133.42,133.38,192.95121079]
[1765246842033,3.40932524,133.42,133.38,189.4867]
[1765246843143,3.40932524,133.42,133.39,6.7464]
[1765246847335,3.40932524,133.42,133.39,10.21091079]
[1765246855248,3.40932524,133.42,133.4,6.7459]
[1765246857042,0.04932524,133.42,133.4,6.7459]
[1765246858749,3.16932524,133.42,133.4,6.7459]
[1765246864558,0.04932524,133.42,133.4,6.7459]
[1765246864750,0.04932524,133.42,133.4,8.95946251]
[1765246867658,3.28932524,133.42,133.4,8.95946251]
[1765246870558,0.04932524,133.42,133.4,8.95946251]
[1765246872265,3.28932524,133.42,133.4,8.95946251]
[1765246872960,3.28932524,133.42,133.38,189.4869]
[1765246873262,3.28932524,133.42,133.38,127.96046251]
[1765246873263,3.24,133.4,133.38,127.96046251]
[1765246873456,3.24,133.4,133.38,121.21356251]
[1765246873654,3.28932524,133.42,133.38,121.21356251]
[1765246873958,5.60630593,133.41,133.4,2.21356251]
[1765246874966,0.04932524,133.42,133.4,2.21356251]
[1765246875464,0.04932524,133.42,133.4,72.67926251]
[1765246875660,0.04932524,133.42,133.4,191.67926251]
[1765246877265,0.04932524,133.42,133.4,127.95926251]
[1765246877468,3.28932524,133.42,133.4,191.67926251]
[1765246879767,3.28932524,133.42,133.4,72.67926251]
[1765246881569,3.28932524,133.42,133.4,65.93356251]
[1765246881764,3.28932524,133.42,133.4,2.21356251]
[1765246884172,5.60430323,133.41,133.38,72.68026251]
[1765246884378,3.24,133.4,133.38,72.68026251]
[1765246886083,3.24,133.4,133.38,63.72]
[1765246890977,3.24,133.4,133.37,9.01528414]
[1765246891569,3.28932524,133.42,133.39,2.21356251]
[1765246891770,11.17116136,133.41,133.39,2.21356251]
[1765246891973,3.28932524,133.42,133.39,2.21356251]
[1765246892173,11.17115475,133.41,133.39,2.21356251]
[1765246892370,3.28932524,133.42,133.39,2.21356251]
[1765246892576,5.60240976,133.41,133.39,8.95996251]
[1765246892771,3.28932524,133.42,133.39,8.95996251]
[1765246892976,5.60210002,133.41,133.39,8.95996251]
[1765246893285,0.04932524,133.42,133.39,8.95996251]
[1765246893482,0.04932524,133.42,133.41,2.21356251]
[1765246893681,5.66904034,133.42,133.41,2.21356251]
[1765246894179,11.21477004,133.42,133.4,0.05037333]
[1765246894380,0.04932524,133.42,133.41,2.21356251]
[1765246894684,11.2151224,133.42,133.41,2.21356251]
[1765246895779,5.66898488,133.42,133.41,2.21356251]
[1765246896189,0.04932524,133.42,133.41,2.21356251]
[1765246896487,5.66886161,133.42,133.41,2.21356251]
[1765246896682,8.90886161,133.42,133.41,2.21356251]
[1765246903293,5.66886161,133.42,133.41,2.21356251]
[1765246903496,0.04932524,133.42,133.41,2.21356251]
[1765246921110,3.29,133.41,133.4,119.0]
[1765246921311,3.24,133.4,133.37,2.21356251]
[1765246922012,8.85961082,133.39,133.37,2.21356251]
[1765246922213,0.05326486,133.39,133.37,2.26450858]
[1765246923214,3.29326486,133.39,133.37,2.26450858]
[1765246926717,3.29326486,133.39,133.37,0.05094607]
[1765246929416,8.85424897,133.38,133.37,0.05094607]
[1765246930318,3.24,133.38,133.37,0.05094607]
[1765246930513,8.85102875,133.38,133.37,0.05094607]
[1765246931517,3.24,133.37,133.32,3.4611822]
[1765246931714,3.24,133.35,133.31,6.7503]
[1765246932620,3.29576877,133.34,133.32,0.05635598]
[1765246957225,3.33576877,133.34,133.32,0.05635598]
[1765246957533,0.05576877,133.34,133.32,0.05635598]
[1765246958328,0.05576877,133.34,133.32,6.80605598]
[1765246958839,0.05576877,133.34,133.32,100.39067521]
[1765246959835,3.28,133.38,133.34,6.7489]
[1765246960835,3.32842995,133.37,133.34,6.7489]
[1765246961026,3.32842995,133.37,133.34,6.80133545]
[1765246971834,0.04842995,133.37,133.34,6.80133545]
[1765246972835,3.41842995,133.37,133.34,6.80133545]
[1765246977344,3.41842995,133.37,133.34,0.05243545]
[1765246977738,3.37,133.35,133.34,0.05243545]
[1765246977934,8.9827011,133.35,133.34,0.05243545]
[1765246979250,3.37,133.34,133.3,6.7508]
[1765246980347,3.37,133.32,133.31,0.04937974]
[1765246981540,3.14413047,133.33,133.31,0.04937974]
[1765246984344,0.05413047,133.33,133.32,3.4611822]
[1765246986652,0.05413047,133.33,133.32,2.21623972]
[1765246989752,0.05413047,133.33,133.32,121.21623972]
[1765247001763,5.51722571,133.38,133.32,226.21553972]
[1765247001969,5.67357747,133.37,133.36,2.21623972]
[1765247002163,3.09,133.39,133.36,2.21623972]
[1765247002370,5.67305097,133.38,133.36,2.21623972]
[1765247002664,0.05389435,133.38,133.36,2.26946016]
[1765247003958,3.14389435,133.38,133.36,2.26946016]
[1765247004360,0.05389435,133.38,133.36,2.26946016]
[1765247005969,3.14389435,133.38,133.36,0.05322044]
[1765247006167,3.14389435,133.38,133.37,2.21623972]
[1765247006868,0.05389435,133.38,133.37,2.21623972]
[1765247017774,3.09,133.41,133.37,2.21623972]
[1765247018072,3.09,133.42,133.4,2.21623972]
[1765247018877,3.14175134,133.42,133.4,2.26723944]
[1765247020782,3.14175134,133.42,133.4,0.05099972]
[1765247026880,3.14175134,133.42,133.41,2.21623972]
[1765247027388,5.35799106,133.42,133.4,0.05099972]
[1765247027588,3.09,133.41,133.4,0.05099972]
[1765247027790,3.09,133.41,133.37,8.96363972]
[1765247027791,3.09,133.4,133.37,2.21623972]
[1765247028685,3.27,133.39,133.37,0.0494139]
[1765247034594,3.27,133.38,133.35,2.21623972]
[1765247034901,3.27,133.38,133.33,8.96543972]
[1765247035698,3.27,133.36,133.34,0.05656961]
[1765247041497,8.8583882,133.35,133.34,0.05656961]
[1765247041701,3.26737357,133.37,133.34,2.27280933]
[1765247042503,3.26737357,133.37,133.36,2.21623972]
[1765247043297,8.91523987,133.37,133.36,2.21623972]
[1765247043508,3.21,133.36,133.34,2.27280933]
[1765247048797,3.21,133.36,133.34,0.05656961]
[1765247052509,5.64957775,133.35,133.3,122.46273453]
[1765247052715,3.21,133.34,133.3,3.46273453]
[1765247053412,3.21,133.32,133.31,0.02754777]
[1765247055512,3.21,133.32,133.27,129.21503453]
[1765247059314,3.11028421,133.33,133.29,3.46273453]
[1765247062416,3.11028421,133.33,133.28,192.97463453]
[1765247070614,3.11028421,133.33,133.28,189.5119]
[1765247071819,9.86018421,133.33,133.28,182.76]
[1765247072118,3.06,133.32,133.28,182.76]
[1765247072825,3.06,133.32,133.28,63.76]
[1765247078126,3.06,133.31,133.27,6.7524]
[1765247078320,3.06,133.29,133.24,67.24273453]
[1765247078521,3.06,133.29,133.24,186.24273453]
[1765247079617,3.06,133.29,133.25,6.7535]
[1765247084228,3.06,133.29,133.26,3.46273453]
[1765247084422,0.05764403,133.3,133.26,3.46273453]
[1765247084617,3.11764403,133.3,133.26,3.46273453]
[1765247089432,3.09,133.29,133.24,122.46273453]
[1765247090628,3.09,133.29,133.24,129.21673453]
[1765247093738,3.09,133.29,133.24,10.21673453]
[1765247094041,3.09,133.29,133.24,3.46273453]
[1765247094042,3.09,133.28,133.24,3.46273453]
[1765247094233,6.7518,133.29,133.24,3.46273453]
[1765247094234,3.13905293,133.27,133.24,3.46273453]
[1765247095243,3.13905293,133.27,133.23,182.78]
[1765247095439,3.09,133.25,133.23,63.78]
[1765247098730,3.09,133.25,133.21,10.21823453]
[1765247098931,8.81333689,133.24,133.21,10.21823453]
[1765247099138,3.14146167,133.24,133.21,10.21823453]
[1765247103345,3.17146167,133.24,133.21,10.21823453]
[1765247105155,0.05146167,133.24,133.21,10.21823453]
[1765247108739,0.05146167,133.24,133.23,2.21979464]
[1765247115052,0.05146167,133.24,133.22,6.7548]
[1765247115261,0.05146167,133.24,133.23,2.21979464]
[1765247120359,0.05146167,133.24,133.17,119.0]
[1765247120360,3.32146167,133.24,133.17,119.0]
[1765247120660,3.27,133.22,133.16,2.21979464]
[1765247120845,3.32084048,133.2,133.16,2.21979464]
[1765247121045,3.32084048,133.2,133.16,121.21979464]
[1765247121443,0.05084048,133.2,133.16,127.97779464]
[1765247122552,0.05084048,133.2,133.18,2.21979464]
[1765247124658,0.05084048,133.2,133.18,8.97679464]
[1765247124849,0.05084048,133.2,133.18,72.79679464]
[1765247126259,0.05084048,133.2,133.18,191.79679464]
[1765247126856,0.05084048,133.2,133.18,189.577]
[1765247127056,0.05084048,133.2,133.19,2.21979464]
[1765247128957,0.05084048,133.2,133.19,121.21979464]
[1765247132162,0.05084048,133.2,133.19,2.21979464]
[1765247143274,3.27,133.24,133.2,6.7559]
[1765247143478,5.6890033,133.23,133.22,2.21979464]
[1765247143773,3.27,133.25,133.22,2.21979464]
[1765247143971,3.27,133.25,133.24,2.21979464]
[1765247144169,8.95817586,133.25,133.24,2.21979464]
[1765247147978,3.27,133.25,133.24,2.21979464]
[1765247148374,8.95710503,133.25,133.24,2.21979464]
[1765247148972,3.27,133.25,133.24,2.21979464]
[1765247151077,0.05123105,133.26,133.24,2.21979464]
[1765247151479,0.05123105,133.26,133.24,121.21979464]
[1765247151680,0.05123105,133.26,133.24,127.97369464]
[1765247153477,5.67931665,133.29,133.24,127.97369464]
[1765247153678,3.11,133.31,133.28,2.21979464]
[1765247153980,3.11,133.33,133.3,2.21979464]
[1765247154176,8.78842376,133.32,133.3,2.21979464]
[1765247154482,3.11,133.32,133.3,2.21979464]
[1765247154674,3.16746861,133.32,133.3,2.27305415]
[1765247154870,3.16746861,133.32,133.3,0.05325951]
[1765247155074,3.16746861,133.32,133.3,2.27305415]
[1765247160291,3.16746861,133.32,133.3,0.05325951]
[1765247160492,3.16746861,133.32,133.31,2.21979464]
[1765247160992,3.16746861,133.32,133.3,0.05325951]
[1765247167797,3.16746861,133.32,133.3,0.00325951]
[1765247167990,3.12,133.3,133.27,119.0]
[1765247168193,3.12,133.3,133.26,8.97259464]
[1765247168997,3.12,133.28,133.27,0.04744236]
[1765247170396,3.17359274,133.29,133.27,0.04744236]
[1765247182503,3.17359274,133.29,133.24,6.7537]
[1765247184810,5.66036379,133.28,133.24,6.7537]
[1765247184997,3.13,133.27,133.24,6.7537]
[1765247189312,6.99066631,133.31,133.23,63.78]
[1765247189516,3.13,133.32,133.29,3.46602487]
[1765247190413,5.47252437,133.35,133.31,105.0074]
[1765247190610,3.13,133.38,133.33,3.46602487]
[1765247190810,3.13,133.37,133.33,3.46602487]
[1765247191610,0.0554284,133.36,133.34,0.04980899]
[1765247193315,3.13,133.41,133.35,3.46602487]
[1765247193513,3.13,133.4,133.35,3.46602487]
[1765247194320,0.05690854,133.39,133.36,0.05380377]
[1765247195216,3.18690854,133.39,133.36,0.05380377]
[1765247199420,3.13,133.37,133.32,63.8]
[1765247199925,3.13,133.37,133.31,10.21642487]
[1765247200422,3.13,133.34,133.33,0.05233343]
[1765247202719,3.18440602,133.35,133.33,3.5183583]
[1765247202914,0.05440602,133.35,133.33,3.5183583]
[1765247203722,0.05440602,133.35,133.33,234.2613583]
[1765247204119,0.05440602,133.35,133.33,115.2613583]
[1765247208624,0.05440602,133.35,133.33,111.79533343]
[1765247208830,0.05440602,133.35,133.34,3.46602487]
[1765247209532,0.05440602,133.35,133.34,122.46602487]
[1765247215532,3.13,133.39,133.35,104.9782]
[1765247215737,3.15,133.42,133.37,3.46602487]
[1765247216627,3.19954845,133.41,133.38,6.79753856]
[1765247218738,3.19954845,133.41,133.38,0.05063856]
[1765247220235,0.04954845,133.41,133.39,3.46602487]
[1765247220631,3.15,133.45,133.39,172.14952487]
[1765247220836,3.15,133.45,133.41,3.46602487]
[1765247221440,3.15,133.45,133.41,10.21142487]
[1765247221628,0.05103738,133.44,133.42,0.04786405]
[1765247223525,0.05103738,133.44,133.42,6.79266405]
[1765247226738,3.10103738,133.44,133.42,70.53266405]
[1765247226940,3.10103738,133.44,133.42,63.78786405]
[1765247227242,3.10103738,133.44,133.42,0.04786405]
[1765247231333,3.10103738,133.44,133.42,2.26179485]
[1765247231737,0.05103738,133.44,133.43,2.2139308]
[1765247242646,5.62732081,133.48,133.46,6.7429]
[1765247242851,3.21,133.5,133.47,2.2139308]
[1765247243751,3.25854956,133.5,133.47,2.27115457]
[1765247244351,3.25854956,133.5,133.49,2.2139308]
[1765247248450,3.25854956,133.5,133.47,6.79942377]
[1765247248649,3.25854956,133.5,133.48,2.2139308]
[1765247252953,8.83253607,133.53,133.48,2.2139308]
[1765247253158,3.21,133.52,133.5,2.2139308]
[1765247254060,3.26456844,133.52,133.5,2.26654568]
[1765247256350,3.26456844,133.52,133.5,0.05261488]
[1765247256548,3.26456844,133.52,133.51,2.2139308]
[1765247262358,3.26456844,133.52,133.5,0.05261488]
[1765247262558,3.26456844,133.52,133.51,2.2139308]
[1765247263261,0.05456844,133.52,133.51,2.2139308]
[1765247263456,3.21,133.57,133.52,6.7399]
[1765247263663,3.21,133.57,133.53,2.2139308]
[1765247263864,3.21,133.57,133.55,2.2139308]
[1765247264266,3.21,133.59,133.55,2.2139308]
[1765247264463,3.21,133.57,133.56,0.05163356]
[1765247269979,3.42462618,133.58,133.56,0.05163356]
[1765247280490,3.37,133.57,133.53,72.6330308]
[1765247280692,3.37,133.55,133.51,8.9542308]
[1765247280885,3.37,133.55,133.49,2.2139308]
[1765247281492,3.17,133.52,133.49,2.2139308]
[1765247281992,3.17,133.52,133.47,2.2139308]
[1765247282591,3.17,133.52,133.47,8.9561308]
[1765247282779,3.17,133.52,133.48,0.05189279]
[1765247284498,5.3839308,133.52,133.48,0.05189279]
[1765247284692,3.17,133.51,133.48,0.05189279]
[1765247285585,2.2139308,133.52,133.48,0.05189279]
[1765247285586,3.17,133.49,133.48,0.05189279]
[1765247289903,3.22038835,133.5,133.48,2.26582359]
[1765247290790,3.22038835,133.5,133.48,0.05189279]